[Event "Titled Tuesday Blitz August 22 Late 2023"]
[White "Onthequiet"]
[Black "Kula, Robert"]
[BlackFideId "1101218"]
[WhiteElo "2431"]
[BlackElo "2151"]
[Result "1-0"]
[Round "6"]
[TimeControl "180+1"]
[Date "2023.08.22"]
[WhiteClock "0:00:09"]
[BlackClock "0:00:00"]
[Board "142"]

1. d4 {[%clk 0:02:59]}  d5 {[%clk 0:02:59]} 2. Nf3 {[%clk 0:02:59]}  Nf6 {[%clk 0:02:58]} 3. c4 {[%clk 0:02:59]}  c6 {[%clk 0:02:58]} 4. e3 {[%clk 0:02:58]}  g6 {[%clk 0:02:56]} 5. Nc3 {[%clk 0:02:56]}  Bg7 {[%clk 0:02:56]} 6. h3 {[%clk 0:02:56]}  O-O {[%clk 0:02:56]} 7. Qb3 {[%clk 0:02:53]}  dxc4 {[%clk 0:02:52]} 8. Bxc4 {[%clk 0:02:52]}  b5 {[%clk 0:02:52]} 9. Bd3 {[%clk 0:02:52]}  Be6 {[%clk 0:02:52]} 10. Qc2 {[%clk 0:02:51]}  a6 {[%clk 0:02:43]} 11. O-O {[%clk 0:02:50]}  Nd5 {[%clk 0:02:36]} 12. a3 {[%clk 0:02:48]}  Nxc3 {[%clk 0:02:17]} 13. bxc3 {[%clk 0:02:47]}  h6 {[%clk 0:01:52]} 14. a4 {[%clk 0:02:46]}  Nd7 {[%clk 0:01:51]} 15. Ba3 {[%clk 0:02:41]}  Nb6 {[%clk 0:01:48]} 16. a5 {[%clk 0:02:31]}  Nc4 {[%clk 0:01:44]} 17. Bb4 {[%clk 0:02:30]}  Rc8 {[%clk 0:01:40]} 18. Nd2 {[%clk 0:02:25]}  Nxd2 {[%clk 0:01:13]} 19. Qxd2 {[%clk 0:02:26]}  Qd7 {[%clk 0:01:14]} 20. Bc5 {[%clk 0:02:19]}  f5 {[%clk 0:01:07]} 21. f4 {[%clk 0:02:13]}  Bd5 {[%clk 0:01:04]} 22. Kh2 {[%clk 0:02:07]}  h5 {[%clk 0:00:59]} 23. g4 {[%clk 0:02:00]}  hxg4 {[%clk 0:00:58]} 24. hxg4 {[%clk 0:02:00]}  Kf7 {[%clk 0:00:58]} 25. Kg3 {[%clk 0:01:34]}  Rh8 {[%clk 0:00:56]} 26. Qe2 {[%clk 0:01:26]}  Rh7 {[%clk 0:00:34]} 27. e4 {[%clk 0:00:49]}  Rch8 {[%clk 0:00:32]} 28. exd5 {[%clk 0:00:47]}  Rh3+ {[%clk 0:00:31]} 29. Kf2 {[%clk 0:00:47]}  Rh2+ {[%clk 0:00:31]} 30. Ke1 {[%clk 0:00:48]}  Rxe2+ {[%clk 0:00:31]} 31. Bxe2 {[%clk 0:00:48]}  Qxd5 {[%clk 0:00:30]} 32. gxf5 {[%clk 0:00:46]}  gxf5 {[%clk 0:00:30]} 33. Kd2 {[%clk 0:00:41]}  Rh2 {[%clk 0:00:29]} 34. Rfe1 {[%clk 0:00:33]}  Bh6 {[%clk 0:00:29]} 35. Rf1 {[%clk 0:00:09]}  Qc4 {[%clk 0:00:28]} 36. Rae1 {[%clk 0:00:08]}  Qa2+ {[%clk 0:00:27]} 37. Kd3 {[%clk 0:00:08]}  Rh4 {[%clk 0:00:10]} 38. Bf3 {[%clk 0:00:06]}  Bxf4 {[%clk 0:00:09]} 39. Rxe7+ {[%clk 0:00:05]}  Kf6 {[%clk 0:00:09]} 40. Rfe1 {[%clk 0:00:04]}  Qc4+ {[%clk 0:00:09]} 41. Kc2 {[%clk 0:00:04]}  Qa2+ {[%clk 0:00:09]} 42. Kd3 {[%clk 0:00:04]}  Qc4+ {[%clk 0:00:09]} 43. Kc2 {[%clk 0:00:04]}  Rh2+ {[%clk 0:00:10]} 44. R7e2 {[%clk 0:00:04]}  Qa2+ {[%clk 0:00:09]} 45. Kd3 {[%clk 0:00:04]}  Qc4+ {[%clk 0:00:09]} 46. Kc2 {[%clk 0:00:04]}  Rxe2+ {[%clk 0:00:10]} 47. Rxe2 {[%clk 0:00:04]}  Qa2+ {[%clk 0:00:09]} 48. Kd3 {[%clk 0:00:05]}  Qxa5 {[%clk 0:00:10]} 49. Kc2 {[%clk 0:00:05]}  Qa4+ {[%clk 0:00:10]} 50. Kd3 {[%clk 0:00:06]}  Qc4+ {[%clk 0:00:09]} 51. Kc2 {[%clk 0:00:07]}  a5 {[%clk 0:00:09]} 52. Be7+ {[%clk 0:00:08]}  Kg6 {[%clk 0:00:05]} 53. Rg2+ {[%clk 0:00:08]}  Kf7 {[%clk 0:00:06]} 54. Bc5 {[%clk 0:00:07]}  b4 {[%clk 0:00:05]} 55. Bh5+ {[%clk 0:00:08]}  Kf6 {[%clk 0:00:04]} 56. Rg6+ {[%clk 0:00:09]}  Kf7 {[%clk 0:00:03]} 57. Rg4+ {[%clk 0:00:08]}  Kf6 {[%clk 0:00:02]} 58. Rxf4 {[%clk 0:00:09]}  Qxc3+ {[%clk 0:00:01]} 59. Kd1 {[%clk 0:00:09]}  Qd3+ {[%clk 0:00:01]} 60. Ke1 {[%clk 0:00:08]}  Qe3+ {[%clk 0:00:01]} 61. Be2 {[%clk 0:00:07]}  Qxf4 {[%clk 0:00:02]} 62. Bb6 {[%clk 0:00:07]}  Qe3 {[%clk 0:00:03]} 63. d5 {[%clk 0:00:07]}  b3 {[%clk 0:00:04]} 64. Bxe3 {[%clk 0:00:07]}  b2 {[%clk 0:00:05]} 65. Bd4+ {[%clk 0:00:07]}  Kg5 {[%clk 0:00:04]} 66. Bxb2 {[%clk 0:00:08]}  Kf4 {[%clk 0:00:05]} 67. dxc6 {[%clk 0:00:08]}  Ke3 {[%clk 0:00:06]} 68. c7 {[%clk 0:00:09]}  f4 {[%clk 0:00:06]} 69. c8=Q {[%clk 0:00:08]}  f3 {[%clk 0:00:07]} 70. Bxf3 {[%clk 0:00:09]}  a4 {[%clk 0:00:07]} 71. Qc4 {[%clk 0:00:09]}  a3 {[%clk 0:00:08]} 72. Bxa3 {[%clk 0:00:10]}  Kxf3 {[%clk 0:00:00]} 73. Qf7+ {[%clk 0:00:09]} 1-0


[Site "https://www.chess.com"]

[Event "Titled Tuesday Blitz August 22 Late 2023"]
[White "Bochnicka, Vladimir"]
[Black "miraitrunks"]
[WhiteFideId "14943450"]
[WhiteElo "2431"]
[BlackElo "1990"]
[Result "1-0"]
[Round "6"]
[TimeControl "180+1"]
[Date "2023.08.22"]
[WhiteClock "0:02:02"]
[BlackClock "0:01:37"]
[Board "143"]

1. Nh3 {[%clk 0:03:00]}  d5 {[%clk 0:03:00]} 2. g3 {[%clk 0:03:00]}  Nc6 {[%clk 0:02:48]} 3. Bg2 {[%clk 0:03:00]}  Nf6 {[%clk 0:02:49]} 4. b3 {[%clk 0:03:00]}  Bf5 {[%clk 0:02:48]} 5. Bb2 {[%clk 0:03:01]}  e6 {[%clk 0:02:49]} 6. O-O {[%clk 0:02:59]}  Qd7 {[%clk 0:02:48]} 7. d3 {[%clk 0:02:57]}  Bc5 {[%clk 0:02:48]} 8. Nd2 {[%clk 0:02:45]}  h6 {[%clk 0:02:44]} 9. Nf3 {[%clk 0:02:45]}  e5 {[%clk 0:02:41]} 10. d4 {[%clk 0:02:37]}  exd4 {[%clk 0:02:38]} 11. Nf4 {[%clk 0:02:35]}  g5 {[%clk 0:02:18]} 12. Nd3 {[%clk 0:02:30]}  Bb6 {[%clk 0:02:18]} 13. Nde5 {[%clk 0:02:29]}  Nxe5 {[%clk 0:02:17]} 14. Nxe5 {[%clk 0:02:30]}  Qe6 {[%clk 0:02:17]} 15. Bxd4 {[%clk 0:02:29]}  c5 {[%clk 0:01:58]} 16. Bb2 {[%clk 0:02:25]}  Bc7 {[%clk 0:01:57]} 17. Nd3 {[%clk 0:02:14]}  b6 {[%clk 0:01:56]} 18. c4 {[%clk 0:02:12]}  Rd8 {[%clk 0:01:55]} 19. cxd5 {[%clk 0:02:11]}  Rxd5 {[%clk 0:01:54]} 20. Bxf6 {[%clk 0:02:09]}  Bxd3 {[%clk 0:01:51]} 21. exd3 {[%clk 0:02:08]}  Qxf6 {[%clk 0:01:47]} 22. Bxd5 {[%clk 0:02:08]}  O-O {[%clk 0:01:47]} 23. Qf3 {[%clk 0:02:08]}  Qd4 {[%clk 0:01:44]} 24. Rae1 {[%clk 0:02:02]}  Kg7 {[%clk 0:01:42]} 25. Re7 {[%clk 0:02:01]}  Be5 {[%clk 0:01:37]} 26. Rxf7+ {[%clk 0:02:01]}  Rxf7 {[%clk 0:01:36]} 27. Qxf7+ {[%clk 0:02:01]}  Kh8 {[%clk 0:01:37]} 28. Qg8# {[%clk 0:02:02]} 1-0


[Site "https://www.chess.com"]

[Event "Titled Tuesday Blitz August 22 Late 2023"]
[White "Novikova, Margarita"]
[Black "Reprintsev, Alexander"]
[WhiteFideId "14109689"]
[BlackFideId "14100541"]
[WhiteElo "2176"]
[BlackElo "2486"]
[Result "0-1"]
[Round "6"]
[TimeControl "180+1"]
[Date "2023.08.22"]
[WhiteClock "0:00:00"]
[BlackClock "0:00:10"]
[Board "144"]

1. d4 {[%clk 0:02:56]}  d5 {[%clk 0:02:59]} 2. Bf4 {[%clk 0:02:57]}  Nf6 {[%clk 0:02:58]} 3. Nf3 {[%clk 0:02:52]}  e6 {[%clk 0:02:52]} 4. c3 {[%clk 0:02:52]}  c5 {[%clk 0:02:45]} 5. e3 {[%clk 0:02:49]}  Bd7 {[%clk 0:02:45]} 6. Nbd2 {[%clk 0:02:47]}  Be7 {[%clk 0:02:44]} 7. h3 {[%clk 0:02:43]}  Bc6 {[%clk 0:02:43]} 8. Bd3 {[%clk 0:02:41]}  Nbd7 {[%clk 0:02:41]} 9. O-O {[%clk 0:02:40]}  Rc8 {[%clk 0:02:36]} 10. Ne5 {[%clk 0:02:40]}  O-O {[%clk 0:02:34]} 11. Nxc6 {[%clk 0:02:37]}  bxc6 {[%clk 0:02:34]} 12. e4 {[%clk 0:02:37]}  cxd4 {[%clk 0:02:15]} 13. e5 {[%clk 0:02:31]}  Ne4 {[%clk 0:02:04]} 14. Nxe4 {[%clk 0:02:30]}  dxe4 {[%clk 0:02:04]} 15. Bxe4 {[%clk 0:02:29]}  Nc5 {[%clk 0:02:02]} 16. Bb1 {[%clk 0:02:02]}  dxc3 {[%clk 0:01:52]} 17. Qc2 {[%clk 0:02:01]}  g6 {[%clk 0:01:34]} 18. Qxc3 {[%clk 0:01:56]}  Na4 {[%clk 0:01:25]} 19. Qc2 {[%clk 0:01:49]}  Qd4 {[%clk 0:01:12]} 20. Be3 {[%clk 0:01:34]}  Qxb2 {[%clk 0:01:09]} 21. Qxa4 {[%clk 0:01:34]}  Qxa1 {[%clk 0:01:08]} 22. Bd4 {[%clk 0:01:34]}  Qxd4 {[%clk 0:00:55]} 23. Qxd4 {[%clk 0:01:33]}  c5 {[%clk 0:00:53]} 24. Qd7 {[%clk 0:01:28]}  Rfe8 {[%clk 0:00:53]} 25. Qxa7 {[%clk 0:01:25]}  c4 {[%clk 0:00:52]} 26. Rc1 {[%clk 0:01:19]}  c3 {[%clk 0:00:52]} 27. Qa5 {[%clk 0:01:12]}  Red8 {[%clk 0:00:39]} 28. Be4 {[%clk 0:00:59]}  Rc5 {[%clk 0:00:30]} 29. Qb4 {[%clk 0:00:50]}  Rdc8 {[%clk 0:00:28]} 30. Qb3 {[%clk 0:00:46]}  Bg5 {[%clk 0:00:20]} 31. Rc2 {[%clk 0:00:43]}  Bd2 {[%clk 0:00:21]} 32. a4 {[%clk 0:00:33]}  Rxe5 {[%clk 0:00:20]} 33. Bf3 {[%clk 0:00:25]}  Rcc5 {[%clk 0:00:20]} 34. g3 {[%clk 0:00:23]}  h5 {[%clk 0:00:20]} 35. h4 {[%clk 0:00:23]}  Kg7 {[%clk 0:00:20]} 36. Qb4 {[%clk 0:00:20]}  Ra5 {[%clk 0:00:20]} 37. Qd4 {[%clk 0:00:19]}  Rc5 {[%clk 0:00:17]} 38. Kg2 {[%clk 0:00:15]}  Kh7 {[%clk 0:00:17]} 39. Qd7 {[%clk 0:00:13]}  Kg7 {[%clk 0:00:16]} 40. Bc6 {[%clk 0:00:13]}  Rf5 {[%clk 0:00:13]} 41. Bb5 {[%clk 0:00:12]}  Rcd5 {[%clk 0:00:10]} 42. Bc4 {[%clk 0:00:00]}  Rxd7 {[%clk 0:00:10]} 0-1


[Site "https://www.chess.com"]

[Event "Titled Tuesday Blitz August 22 Late 2023"]
[White "SergioMoralesG"]
[Black "Cruz, William Ferreira Da"]
[BlackFideId "2118050"]
[WhiteElo "2407"]
[BlackElo "2304"]
[Result "1-0"]
[Round "6"]
[TimeControl "180+1"]
[Date "2023.08.22"]
[WhiteClock "0:00:52"]
[BlackClock "0:00:00"]
[Board "147"]

1. d4 {[%clk 0:03:00]}  Nf6 {[%clk 0:02:59]} 2. c4 {[%clk 0:02:59]}  g6 {[%clk 0:03:00]} 3. Nc3 {[%clk 0:02:59]}  Bg7 {[%clk 0:03:00]} 4. e4 {[%clk 0:02:59]}  d6 {[%clk 0:03:01]} 5. Nf3 {[%clk 0:02:59]}  O-O {[%clk 0:03:01]} 6. Be2 {[%clk 0:02:59]}  e5 {[%clk 0:03:01]} 7. Be3 {[%clk 0:03:00]}  Ng4 {[%clk 0:02:59]} 8. Bg5 {[%clk 0:02:59]}  f6 {[%clk 0:02:59]} 9. Bh4 {[%clk 0:03:00]}  Nc6 {[%clk 0:02:55]} 10. d5 {[%clk 0:03:00]}  Ne7 {[%clk 0:02:54]} 11. Nd2 {[%clk 0:03:00]}  Nh6 {[%clk 0:02:53]} 12. f3 {[%clk 0:03:00]}  g5 {[%clk 0:02:49]} 13. Bf2 {[%clk 0:03:00]}  f5 {[%clk 0:02:50]} 14. c5 {[%clk 0:02:55]}  g4 {[%clk 0:02:43]} 15. fxg4 {[%clk 0:02:53]}  Nxg4 {[%clk 0:02:37]} 16. Bxg4 {[%clk 0:02:52]}  fxg4 {[%clk 0:02:37]} 17. O-O {[%clk 0:02:53]}  Ng6 {[%clk 0:02:29]} 18. cxd6 {[%clk 0:02:53]}  cxd6 {[%clk 0:02:29]} 19. Nc4 {[%clk 0:02:51]}  Rf7 {[%clk 0:02:10]} 20. Nb5 {[%clk 0:02:49]}  Bf8 {[%clk 0:02:08]} 21. Bxa7 {[%clk 0:02:27]}  Rxa7 {[%clk 0:01:57]} 22. Nxa7 {[%clk 0:02:19]}  Rxf1+ {[%clk 0:01:44]} 23. Qxf1 {[%clk 0:02:18]}  Bd7 {[%clk 0:01:44]} 24. a4 {[%clk 0:02:15]}  Nf4 {[%clk 0:01:30]} 25. Nb5 {[%clk 0:02:13]}  h5 {[%clk 0:01:26]} 26. Kh1 {[%clk 0:01:49]}  h4 {[%clk 0:01:26]} 27. Nbxd6 {[%clk 0:01:44]}  g3 {[%clk 0:01:18]} 28. Nf5 {[%clk 0:01:40]}  Bxf5 {[%clk 0:01:11]} 29. exf5 {[%clk 0:01:40]}  h3 {[%clk 0:01:10]} 30. Ne3 {[%clk 0:01:30]}  Qb6 {[%clk 0:00:21]} 31. Qf3 {[%clk 0:01:24]}  hxg2+ {[%clk 0:00:08]} 32. Nxg2 {[%clk 0:01:22]}  gxh2 {[%clk 0:00:05]} 33. Nxf4 {[%clk 0:01:11]}  Qxb2 {[%clk 0:00:03]} 34. Re1 {[%clk 0:00:57]}  exf4 {[%clk 0:00:00]} 35. Qg4+ {[%clk 0:00:52]} 1-0


[Site "https://www.chess.com"]

[Event "Titled Tuesday Blitz August 22 Late 2023"]
[White "Gerbelli Neto, Eduardo"]
[Black "sebastianmarinp"]
[WhiteFideId "2103281"]
[WhiteElo "2302"]
[BlackElo "2407"]
[Result "1-0"]
[Round "6"]
[TimeControl "180+1"]
[Date "2023.08.22"]
[WhiteClock "0:00:07"]
[BlackClock "0:00:03"]
[Board "148"]

1. e4 {[%clk 0:03:00]}  c5 {[%clk 0:02:59]} 2. Nc3 {[%clk 0:03:00]}  Nc6 {[%clk 0:02:59]} 3. f4 {[%clk 0:03:00]}  g6 {[%clk 0:02:59]} 4. Nf3 {[%clk 0:03:01]}  Bg7 {[%clk 0:02:59]} 5. Bc4 {[%clk 0:03:02]}  e6 {[%clk 0:03:00]} 6. f5 {[%clk 0:03:03]}  Nge7 {[%clk 0:02:54]} 7. fxe6 {[%clk 0:03:03]}  dxe6 {[%clk 0:02:47]} 8. d3 {[%clk 0:03:04]}  O-O {[%clk 0:02:34]} 9. O-O {[%clk 0:03:04]}  Nd4 {[%clk 0:02:34]} 10. Bg5 {[%clk 0:03:02]}  h6 {[%clk 0:02:28]} 11. Be3 {[%clk 0:03:02]}  Nec6 {[%clk 0:02:26]} 12. Qd2 {[%clk 0:03:02]}  Nxf3+ {[%clk 0:02:22]} 13. gxf3 {[%clk 0:03:01]}  Bd4 {[%clk 0:02:10]} 14. Kh1 {[%clk 0:02:57]}  Bxe3 {[%clk 0:01:55]} 15. Qxe3 {[%clk 0:02:58]}  Qg5 {[%clk 0:01:56]} 16. f4 {[%clk 0:02:44]}  Qh4 {[%clk 0:01:50]} 17. Qxc5 {[%clk 0:02:35]}  Bd7 {[%clk 0:01:47]} 18. Qf2 {[%clk 0:02:21]}  Qh5 {[%clk 0:01:36]} 19. Rg1 {[%clk 0:02:15]}  Rac8 {[%clk 0:01:28]} 20. f5 {[%clk 0:02:12]}  exf5 {[%clk 0:01:25]} 21. Nd5 {[%clk 0:02:12]}  Kg7 {[%clk 0:01:18]} 22. Nf4 {[%clk 0:02:01]}  Qg4 {[%clk 0:01:13]} 23. Rxg4 {[%clk 0:02:01]}  fxg4 {[%clk 0:01:14]} 24. Rf1 {[%clk 0:01:55]}  Ne5 {[%clk 0:01:13]} 25. Nd5 {[%clk 0:01:45]}  f5 {[%clk 0:01:06]} 26. Qd4 {[%clk 0:01:42]}  Rfe8 {[%clk 0:01:01]} 27. Nf4 {[%clk 0:01:25]}  Kh7 {[%clk 0:00:53]} 28. Qxa7 {[%clk 0:01:16]}  Nxc4 {[%clk 0:00:48]} 29. dxc4 {[%clk 0:01:15]}  Bc6 {[%clk 0:00:42]} 30. Nd5 {[%clk 0:01:09]}  Rxe4 {[%clk 0:00:41]} 31. Qc5 {[%clk 0:00:59]}  b6 {[%clk 0:00:22]} 32. Qxb6 {[%clk 0:00:22]}  Rxc4 {[%clk 0:00:20]} 33. Rd1 {[%clk 0:00:22]}  Rxc2 {[%clk 0:00:15]} 34. Kg1 {[%clk 0:00:20]}  h5 {[%clk 0:00:14]} 35. Qa7+ {[%clk 0:00:18]}  Kh6 {[%clk 0:00:13]} 36. Qe3+ {[%clk 0:00:15]}  Kg7 {[%clk 0:00:11]} 37. Qe5+ {[%clk 0:00:13]}  Kh6 {[%clk 0:00:11]} 38. Qf4+ {[%clk 0:00:11]}  Kg7 {[%clk 0:00:10]} 39. Qd4+ {[%clk 0:00:11]}  Kh6 {[%clk 0:00:10]} 40. Ne3 {[%clk 0:00:11]}  Be4 {[%clk 0:00:08]} 41. Nxc2 {[%clk 0:00:10]}  Rxc2 {[%clk 0:00:07]} 42. Qe3+ {[%clk 0:00:10]}  Kg7 {[%clk 0:00:03]} 43. Rd7+ {[%clk 0:00:10]}  Kf6 {[%clk 0:00:03]} 44. Qd4+ {[%clk 0:00:09]}  Kg5 {[%clk 0:00:04]} 45. Qe3+ {[%clk 0:00:09]}  Kh4 {[%clk 0:00:03]} 46. Qg3+ {[%clk 0:00:08]}  Kg5 {[%clk 0:00:04]} 47. h4+ {[%clk 0:00:07]}  Kf6 {[%clk 0:00:03]} 48. Qd6# {[%clk 0:00:07]} 1-0


[Site "https://www.chess.com"]

[Event "Titled Tuesday Blitz August 22 Late 2023"]
[White "Powell, Paul"]
[Black "Battlecruiser_Operational"]
[WhiteFideId "2005840"]
[WhiteElo "2122"]
[BlackElo "2350"]
[Result "0-1"]
[Round "6"]
[TimeControl "180+1"]
[Date "2023.08.22"]
[WhiteClock "0:00:15"]
[BlackClock "0:01:06"]
[Board "152"]

1. d4 {[%clk 0:03:00]}  e6 {[%clk 0:02:59]} 2. Nf3 {[%clk 0:03:01]}  f5 {[%clk 0:02:58]} 3. Bf4 {[%clk 0:03:00]}  Nf6 {[%clk 0:02:58]} 4. e3 {[%clk 0:03:00]}  Be7 {[%clk 0:02:59]} 5. h3 {[%clk 0:03:00]}  O-O {[%clk 0:02:58]} 6. Be2 {[%clk 0:03:00]}  b6 {[%clk 0:02:58]} 7. O-O {[%clk 0:03:00]}  Bb7 {[%clk 0:02:58]} 8. c4 {[%clk 0:03:00]}  h6 {[%clk 0:02:56]} 9. Nc3 {[%clk 0:02:54]}  d6 {[%clk 0:02:56]} 10. Rc1 {[%clk 0:02:53]}  Nbd7 {[%clk 0:02:56]} 11. b4 {[%clk 0:02:50]}  a5 {[%clk 0:02:56]} 12. a3 {[%clk 0:02:50]}  Ne4 {[%clk 0:02:55]} 13. Nxe4 {[%clk 0:02:35]}  Bxe4 {[%clk 0:02:46]} 14. Nd2 {[%clk 0:02:34]}  Bb7 {[%clk 0:02:46]} 15. Qb3 {[%clk 0:02:33]}  Nf6 {[%clk 0:02:40]} 16. c5 {[%clk 0:02:30]}  Bd5 {[%clk 0:02:38]} 17. Bc4 {[%clk 0:02:29]}  b5 {[%clk 0:02:34]} 18. Bxd5 {[%clk 0:02:26]}  Nxd5 {[%clk 0:02:34]} 19. cxd6 {[%clk 0:02:03]}  cxd6 {[%clk 0:02:35]} 20. Bh2 {[%clk 0:02:03]}  axb4 {[%clk 0:02:35]} 21. axb4 {[%clk 0:02:01]}  Ra4 {[%clk 0:02:35]} 22. Rc6 {[%clk 0:01:32]}  Rxb4 {[%clk 0:02:30]} 23. Qc2 {[%clk 0:01:32]}  Qd7 {[%clk 0:02:24]} 24. Rc1 {[%clk 0:01:30]}  Ra4 {[%clk 0:02:12]} 25. Qb3 {[%clk 0:01:19]}  Rb8 {[%clk 0:02:03]} 26. f3 {[%clk 0:01:12]}  Kh7 {[%clk 0:01:45]} 27. e4 {[%clk 0:01:08]}  fxe4 {[%clk 0:01:43]} 28. fxe4 {[%clk 0:01:08]}  Nf6 {[%clk 0:01:34]} 29. Rc7 {[%clk 0:01:05]}  Qd8 {[%clk 0:01:32]} 30. Qxe6 {[%clk 0:01:05]}  Rxd4 {[%clk 0:01:28]} 31. Rxe7 {[%clk 0:00:52]}  Ng8 {[%clk 0:01:21]} 32. Qf5+ {[%clk 0:00:46]}  Kh8 {[%clk 0:01:20]} 33. Nf3 {[%clk 0:00:37]}  Nxe7 {[%clk 0:01:19]} 34. Qg4 {[%clk 0:00:28]}  Rc4 {[%clk 0:01:17]} 35. Rd1 {[%clk 0:00:28]}  Rb6 {[%clk 0:01:12]} 36. e5 {[%clk 0:00:25]}  Rxg4 {[%clk 0:01:13]} 37. hxg4 {[%clk 0:00:24]}  d5 {[%clk 0:01:12]} 38. Nd4 {[%clk 0:00:24]}  b4 {[%clk 0:01:11]} 39. Nb3 {[%clk 0:00:23]}  Qc8 {[%clk 0:01:07]} 40. Rd2 {[%clk 0:00:15]}  Qc3 {[%clk 0:01:06]} 0-1


[Site "https://www.chess.com"]

[Event "Titled Tuesday Blitz August 22 Late 2023"]
[White "Figorito, Nick"]
[Black "Navyblue1"]
[WhiteFideId "30923689"]
[WhiteElo "2344"]
[BlackElo "2037"]
[Result "1-0"]
[Round "6"]
[TimeControl "180+1"]
[Date "2023.08.22"]
[WhiteClock "0:02:35"]
[BlackClock "0:02:13"]
[Board "153"]

1. Nf3 {[%clk 0:03:00]}  c5 {[%clk 0:02:57]} 2. g3 {[%clk 0:03:01]}  d5 {[%clk 0:02:56]} 3. Bg2 {[%clk 0:03:01]}  Nc6 {[%clk 0:02:56]} 4. d4 {[%clk 0:03:02]}  Nf6 {[%clk 0:02:49]} 5. O-O {[%clk 0:03:01]}  Bg4 {[%clk 0:02:41]} 6. Ne5 {[%clk 0:03:01]}  Nxd4 {[%clk 0:02:30]} 7. Nxg4 {[%clk 0:03:01]}  Nxg4 {[%clk 0:02:29]} 8. e3 {[%clk 0:03:02]}  Nxe3 {[%clk 0:02:18]} 9. Bxe3 {[%clk 0:02:54]}  e5 {[%clk 0:02:17]} 10. c3 {[%clk 0:02:49]}  Nf5 {[%clk 0:02:16]} 11. Qxd5 {[%clk 0:02:45]}  Qxd5 {[%clk 0:02:15]} 12. Bxd5 {[%clk 0:02:46]}  Nxe3 {[%clk 0:02:16]} 13. fxe3 {[%clk 0:02:44]}  f6 {[%clk 0:02:15]} 14. Bxb7 {[%clk 0:02:41]}  Rb8 {[%clk 0:02:15]} 15. Bc6+ {[%clk 0:02:40]}  Kd8 {[%clk 0:02:14]} 16. b3 {[%clk 0:02:39]}  Kc7 {[%clk 0:02:14]} 17. Bd5 {[%clk 0:02:36]}  Be7 {[%clk 0:02:14]} 18. c4 {[%clk 0:02:35]}  Rhd8 {[%clk 0:02:13]} 19. Nc3 {[%clk 0:02:35]} 1-0


[Site "https://www.chess.com"]

[Event "Titled Tuesday Blitz August 22 Late 2023"]
[White "Jin, Ashton"]
[Black "Hoffmann, Asa"]
[WhiteFideId "30931908"]
[BlackFideId "2001470"]
[WhiteElo "2525"]
[BlackElo "2287"]
[Result "1-0"]
[Round "6"]
[TimeControl "180+1"]
[Date "2023.08.22"]
[WhiteClock "0:00:20"]
[BlackClock "0:00:26"]
[Board "154"]

1. e4 {[%clk 0:02:58]}  d6 {[%clk 0:02:51]} 2. d4 {[%clk 0:02:57]}  Nf6 {[%clk 0:02:50]} 3. Nc3 {[%clk 0:02:57]}  c6 {[%clk 0:02:50]} 4. g3 {[%clk 0:02:49]}  g6 {[%clk 0:02:47]} 5. Bg2 {[%clk 0:02:49]}  Bg7 {[%clk 0:02:47]} 6. Nge2 {[%clk 0:02:49]}  O-O {[%clk 0:02:47]} 7. O-O {[%clk 0:02:50]}  Nbd7 {[%clk 0:02:47]} 8. h3 {[%clk 0:02:50]}  e5 {[%clk 0:02:47]} 9. a4 {[%clk 0:02:48]}  a5 {[%clk 0:02:47]} 10. Re1 {[%clk 0:02:45]}  Re8 {[%clk 0:02:46]} 11. Be3 {[%clk 0:02:44]}  b6 {[%clk 0:02:46]} 12. Qd2 {[%clk 0:02:41]}  Ba6 {[%clk 0:02:46]} 13. Rad1 {[%clk 0:02:40]}  Qe7 {[%clk 0:02:45]} 14. d5 {[%clk 0:02:29]}  c5 {[%clk 0:02:42]} 15. Nc1 {[%clk 0:02:20]}  Rab8 {[%clk 0:02:41]} 16. Bf1 {[%clk 0:02:19]}  c4 {[%clk 0:02:38]} 17. f3 {[%clk 0:02:15]}  Rec8 {[%clk 0:02:29]} 18. Bf2 {[%clk 0:02:07]}  Nh5 {[%clk 0:02:28]} 19. b3 {[%clk 0:02:03]}  Bf6 {[%clk 0:02:17]} 20. Bxc4 {[%clk 0:01:52]}  Bxc4 {[%clk 0:02:16]} 21. bxc4 {[%clk 0:01:53]}  Rxc4 {[%clk 0:02:16]} 22. Qd3 {[%clk 0:01:49]}  Rbc8 {[%clk 0:02:16]} 23. N1e2 {[%clk 0:01:45]}  Bg5 {[%clk 0:02:09]} 24. Rb1 {[%clk 0:01:31]}  Qd8 {[%clk 0:02:06]} 25. Nb5 {[%clk 0:01:29]}  Be7 {[%clk 0:01:56]} 26. Na7 {[%clk 0:01:28]}  Rxc2 {[%clk 0:01:55]} 27. Nxc8 {[%clk 0:01:27]}  Qxc8 {[%clk 0:01:52]} 28. Rec1 {[%clk 0:01:26]}  Rxc1+ {[%clk 0:01:50]} 29. Rxc1 {[%clk 0:01:27]}  Nc5 {[%clk 0:01:50]} 30. Qb5 {[%clk 0:01:22]}  Bd8 {[%clk 0:01:41]} 31. Kg2 {[%clk 0:01:18]}  Kg7 {[%clk 0:01:41]} 32. f4 {[%clk 0:01:11]}  exf4 {[%clk 0:01:38]} 33. gxf4 {[%clk 0:01:09]}  Qc7 {[%clk 0:01:31]} 34. e5 {[%clk 0:00:55]}  dxe5 {[%clk 0:01:25]} 35. Bxc5 {[%clk 0:00:54]}  bxc5 {[%clk 0:01:24]} 36. Qxc5 {[%clk 0:00:49]}  Qd7 {[%clk 0:01:18]} 37. fxe5 {[%clk 0:00:46]}  Qxa4 {[%clk 0:01:09]} 38. Rc4 {[%clk 0:00:34]}  Qa2 {[%clk 0:01:05]} 39. Kf3 {[%clk 0:00:30]}  Qa1 {[%clk 0:00:59]} 40. Qd4 {[%clk 0:00:22]}  Qf1+ {[%clk 0:00:56]} 41. Qf2 {[%clk 0:00:19]}  Qxh3+ {[%clk 0:00:55]} 42. Ke4 {[%clk 0:00:18]}  Qg4+ {[%clk 0:00:52]} 43. Kd3 {[%clk 0:00:18]}  Qd7 {[%clk 0:00:50]} 44. Nc3 {[%clk 0:00:18]}  Bg5 {[%clk 0:00:46]} 45. Qd4 {[%clk 0:00:18]}  Nf4+ {[%clk 0:00:43]} 46. Kc2 {[%clk 0:00:17]}  Qf5+ {[%clk 0:00:43]} 47. Kb3 {[%clk 0:00:17]}  h5 {[%clk 0:00:39]} 48. Ne4 {[%clk 0:00:17]}  Be7 {[%clk 0:00:37]} 49. e6+ {[%clk 0:00:17]}  Bf6 {[%clk 0:00:37]} 50. Nxf6 {[%clk 0:00:18]}  Qxf6 {[%clk 0:00:36]} 51. Qxf6+ {[%clk 0:00:18]}  Kxf6 {[%clk 0:00:36]} 52. Rxf4+ {[%clk 0:00:19]}  Ke5 {[%clk 0:00:35]} 53. exf7 {[%clk 0:00:19]}  Kxf4 {[%clk 0:00:34]} 54. f8=Q+ {[%clk 0:00:19]}  Kg3 {[%clk 0:00:34]} 55. d6 {[%clk 0:00:20]}  h4 {[%clk 0:00:26]} 56. d7 {[%clk 0:00:20]} 1-0


[Site "https://www.chess.com"]

[Event "Titled Tuesday Blitz August 22 Late 2023"]
[White "Ismayil, Malak"]
[Black "Mikhaylova, Irina"]
[WhiteFideId "13412604"]
[BlackFideId "4109040"]
[WhiteElo "2496"]
[BlackElo "2282"]
[Result "1-0"]
[Round "6"]
[TimeControl "180+1"]
[Date "2023.08.22"]
[WhiteClock "0:02:16"]
[BlackClock "0:02:19"]
[Board "155"]

1. e4 {[%clk 0:03:00]}  c5 {[%clk 0:02:59]} 2. Nf3 {[%clk 0:02:55]}  Nc6 {[%clk 0:02:59]} 3. Bb5 {[%clk 0:02:45]}  e6 {[%clk 0:02:58]} 4. O-O {[%clk 0:02:42]}  Nge7 {[%clk 0:02:58]} 5. b3 {[%clk 0:02:42]}  Ng6 {[%clk 0:02:56]} 6. Bb2 {[%clk 0:02:33]}  f6 {[%clk 0:02:56]} 7. Re1 {[%clk 0:02:32]}  Be7 {[%clk 0:02:56]} 8. d4 {[%clk 0:02:28]}  cxd4 {[%clk 0:02:56]} 9. Nxd4 {[%clk 0:02:29]}  O-O {[%clk 0:02:54]} 10. Bf1 {[%clk 0:02:25]}  a6 {[%clk 0:02:43]} 11. c4 {[%clk 0:02:25]}  Nge5 {[%clk 0:02:37]} 12. Nd2 {[%clk 0:02:21]}  Nxd4 {[%clk 0:02:37]} 13. Bxd4 {[%clk 0:02:22]}  Nc6 {[%clk 0:02:37]} 14. Bb2 {[%clk 0:02:22]}  e5 {[%clk 0:02:26]} 15. Nf3 {[%clk 0:02:20]}  Bc5 {[%clk 0:02:20]} 16. Qd5+ {[%clk 0:02:17]}  Rf7 {[%clk 0:02:19]} 17. Qxc5 {[%clk 0:02:16]} 1-0


[Site "https://www.chess.com"]